{"text_format":"3","workbook":"xlsx","n_sheets":2,"sheets":["Лист1","Лист2"],"read":"whole","date_system":"1900"}

{"sheet":"Лист1","index":0,"n_rows":40,"n_cols":12,"rows_kept":40,"merged":[[4,1,10,1],[11,1,17,1],[18,1,25,1],[26,1,32,1],[33,1,39,1]]}
[null,null,"Согласовано",{"$nulls":6},"Утверждаю"]
[null,null,"Председатель профкома _______ З.Ш.Садыкова",{"$nulls":6},"Директор ГАПОУ \"Муслюмовский политехнический техникум\""]
[{"$nulls":9},"_________ И.Д.Миргалимов"]
[null,"Дни",251,252,253,241,242,243,232,233,222,223]
[null,"Понедельник ","Иностранный язык 301","Русский язык 404","Математика 401","ТПВАК \"С\"","Инженерная графика","МФПСиГ","Эколог.основы природ",{"$f":"$I$8","v":"Правовые основы"},"МДК.02.03","МДК.06.01"]
[null,null,"Иностранный язык 301","Русский язык 404","Математика 401","ТПВАК \"С\"","Инженерная графика","МФПСиГ","Эколог.основы природ",{"$f":"$I$8","v":"Правовые основы"},"УП.02","УП.05"]
[null,null,"Физическая культура 211","Математика 406","Русский язык 404","Основы.фин.грам","Основы зоотехнии","Химия 407","Правовые основы","МДК.03.01","УП.02","УП.05"]
[null,null,"Физическая культура 211","Математика 406","Русский язык 404","Основы.фин.грам","Основы зоотехнии","Химия 407","Правовые основы","МДК.03.01","УП.02","УП.05"]
[null,null,"Физика 406","ОБиЗР 304","История 408","Тех.обс. авт 309","Физическая культура 211","МДК.01.01","Ин. язык в проф деят","МДК.03.02","УП.02","УП.05"]
[null,null,"Литература 404","История 408","Физика 406","Тех.обс. авт 309","БЖ ","МДК.01.01","ТМР в растениевод",{"$f":"$J$9","v":"МДК.03.02"},"УП.02","УП.05"]
[null,null,"Литература 404","История 408","Физика 406","ТПВАК \"С\"","БЖ ","МДК.01.01","ТМР в растениевод","Физическая культура 211","УП.02","УП.05"]
[null,"Вторник","Математика 406","Информатика 401","Литература 404","ТПВАК \"С\"","Основы гидравлики","Химия 407","ТПиПР тракторист","МДК.04.01","МДК.02.01.","ЭМиМ"]
[null,null,"Математика 406","Информатика 401","Литература 404","УП.03","УП.01","Химия 407","ТПиПР тракторист","УП.02","МДК.02.01.",{"$f":"$L$12","v":"ЭМиМ"}]
[null,null,"Родной язык 403","Математика 406","ОБиЗР 304","УП.03","УП.01","Физическая культура 211",{"$f":"$I$6","v":"Эколог.основы природ"},"УП.02",{"$f":"$K$5","v":"МДК.02.03"},{"$f":"$L$12","v":"ЭМиМ"}]
[null,null,"Родной язык 403","Математика 406","ОБиЗР 304","УП.03","УП.01","БЖ ",{"$f":"$I$6","v":"Эколог.основы природ"},"УП.02",{"$f":"$K$5","v":"МДК.02.03"},"Физическая культура 211"]
[null,null,"ОБиЗР 304","Физическая культура 211","Физика 406","УП.03","УП.01","Математика 401","ТПиПР водителей","УП.02",{"$f":"$K$13","v":"МДК.02.01."},"МДК.05.02"]
[null,null,"Предпр.под авт","Биология 407","Физика 406","УП.03","УП.01","Математика 401","Физическая культура 211","УП.02","Иностранный язык в проф деят","МДК.05.02"]
[null,null,"Предпр.под авт","Биология 407","Физическая культура 211","УП.03","УП.01","БЖ ",{"$f":"$I$20","v":"ТПиПР водителей"},"УП.02","Иностранный язык в проф деят","МДК.05.02"]
[null,"Среда","История 408","География 405","Биология 407","УП.02","Основы зоотехнии","МДК.01.02","ТПиПР водителей","Информ.технол в проф деят",{"$f":"$L$15","v":"Физическая культура 211"},{"$f":"$J$23","v":"Технология планирования"}]
[null,null,"История 408","География 405","Биология 407","УП.02","Основы зоотехнии","МДК.01.02","ТПиПР водителей","Информ.технол в проф деят",{"$f":"$L$15","v":"Физическая культура 211"},{"$f":"$J$23","v":"Технология планирования"}]
[null,null,"Физика 406","ОБиЗР 304","Физическая культура 211","УП.02","Основы гидравлики",{"$f":"$H$34","v":"ОХиКЗиС"},"Ин. язык в проф деят","МДК.04.02","УП.02","УП.04"]
[null,null,"Физика 406","Физическая культура 211","История 408","УП.02","Основы гидравлики",{"$f":"$H$34","v":"ОХиКЗиС"},"Ин. язык в проф деят","МДК.04.02","УП.02","УП.04"]
[null,null,"ОБиЗР 304","Физическая культура 211","Математика 401","УП.02","Техническая механика","МФПСиГ","ТПиПР водителей","Технология планирования","УП.02","УП.04"]
[null,null,"Физическая культура 211","ОБиЗР 304","Математика 401","УП.02","Техническая механика","МФПСиГ","ТПиПР водителей","Технология планирования","УП.02","УП.04"]
[null,null,"Биология 407","Литература 404","Обществознание","ТПВАК \"С\"","Мат.МРППЗ",{"$f":"$I$9","v":"Ин. язык в проф деят"},"МДК.02.01","Организация обслуживания","УП.02","УП.04"]
[null,null,"Биология 407","Литература 404","Обществознание","ТПВАК \"С\"","Мат.МРППЗ",{"$f":"$I$9","v":"Ин. язык в проф деят"},"МДК.02.01","Организация обслуживания","УП.02","УП.04"]
[null,"Четверг","Устройст автотр.сред. 309","Математика 406","Биология 407","ТПВАК \"С\"","Основы взаимозаменяемости","ОХиКЗиС","МДК.02.02","МДК.02.01",{"$f":"$K$15","v":"МДК.02.03"},{"$f":"$J$33","v":"Иностранный язык в проф деят"}]
[null,null,"Устройст автотр.сред. 309","Математика 406","Биология 407","УП.02","Основы взаимозаменяемости","УП.07","УП.03","МДК.02.01",{"$f":"$K$22","v":"УП.02"},"УП.06"]
[null,null,"Русский язык 404","Обществознание","Информатика 401","УП.02","МДК.01.01","УП.07","УП.03","Охрана труда 303",{"$f":"$K$22","v":"УП.02"},{"$f":"$L$28","v":"УП.06"}]
[null,null,"Русский язык 404","Физика 406","Информатика 401","УП.02","МДК.01.01","УП.07","УП.03","МДК.02.02",{"$f":"$K$22","v":"УП.02"},{"$f":"$L$28","v":"УП.06"}]
[null,null,"ОБиЗР 304","Физика 406","Инд.проект","УП.02","Физическая культура 211","УП.07","УП.03",{"$f":"$J$30","v":"МДК.02.02"},{"$f":"$K$22","v":"УП.02"},{"$f":"$L$28","v":"УП.06"}]
[null,null,"Математика 406","Информатика 401","Физика 406","УП.02","МДК.01.02","УП.07","УП.03","Иностранный язык в проф деят",{"$f":"$K$22","v":"УП.02"},{"$f":"$L$28","v":"УП.06"}]
[null,null,"Математика 406","Информатика 401","Физика 406","УП.02","МДК.01.02","УП.07","УП.03","Иностранный язык в проф деят",{"$f":"$K$22","v":"УП.02"},{"$f":"$L$28","v":"УП.06"}]
[null,"Пятница","География 405","Инд.проект","Обществознание","Тех.обс. авт 309","Иностранный язык в проф деят","ОХиКЗиС","МДК.02.02.","Физическая культура 211",{"$f":"$K$15","v":"МДК.02.03"},"МДК.06.01"]
[null,null,"География 405","Инд.проект","Обществознание","Тех.обс. авт 309","Иностранный язык в проф деят","Математика 401",{"$f":"$I$31","v":"УП.03"},"УП.03",{"$f":"$K$15","v":"МДК.02.03"},"МДК.06.01"]
[null,null,"Информатика 401","Обществознание","География 405","ТПВАК \"С\"","Инженерная графика","История 408",{"$f":"$I$31","v":"УП.03"},"УП.03",{"$f":"$K$15","v":"МДК.02.03"},"Физическая культура 211"]
[null,null,"Информатика 401","Обществознание","География 405","ТПВАК \"С\"","Инженерная графика","История 408",{"$f":"$I$31","v":"УП.03"},"УП.03","Физическая культура 211","МДК.05.02"]
[null,null,"Тех.обс. авт 309","Математика 406","Инд.проект","Физическая культура 211","Основы гидравлики","Математика 401",{"$f":"$I$31","v":"УП.03"},"УП.03","МДК.02.01","МДК.05.02"]
[null,null,"Тех.обс. авт 309","Литература 404","Математика 401","Электротехника","Мат.МРППЗ","ТООП",{"$f":"$I$31","v":"УП.03"},"УП.03","МДК.02.01",{"$f":"$J$23","v":"Технология планирования"}]
[null,null,"Биология 407","Литература 404","Математика 401","Электротехника","Мат.МРППЗ","ТООП",{"$f":"$I$31","v":"УП.03"},"УП.03","МДК.02.01",{"$f":"$J$23","v":"Технология планирования"}]

{"sheet":"Лист2","index":1,"n_rows":0,"n_cols":0,"rows_kept":0}